bitfinex/quotes_SOLUSD_20250805
["timestamp","ask_amount","ask_price","bid_price","bid_amount"]
[1754423606238,12.68134862,162.63,162.59,50.63035652]
[1754423606434,12.68134862,162.62,162.59,50.63035652]
[1754423607923,0.59,162.63,162.59,50.63035652]
[1754423608132,12.68134862,162.63,162.59,50.63035652]
[1754423608335,12.68134862,162.62,162.59,50.63035652]
[1754423609328,12.68134862,162.6,162.58,0.06]
[1754423609523,0.59,162.61,162.58,0.06]
[1754423609524,12.68134862,162.59,162.58,0.06]
[1754423609726,13.27134862,162.59,162.58,0.06]
[1754423610345,17.30515368,162.59,162.58,0.06]
[1754423610844,6.14934039,162.62,162.58,0.06]
[1754423611146,12.68134862,162.59,162.58,0.06]
[1754423611548,12.68134862,162.6,162.58,0.06]
[1754423611723,12.68134862,162.6,162.58,0.72]
[1754423611920,6.14893607,162.63,162.58,0.72]
[1754423611921,12.68134862,162.61,162.59,0.66]
[1754423612122,12.68134862,162.61,162.58,0.06]
[1754423612329,12.68134862,162.6,162.58,0.06]
[1754423613134,12.68134862,162.59,162.58,0.06]
[1754423613356,19.42178837,162.59,162.58,0.06]
[1754423613535,23.45825487,162.59,162.58,0.06]
[1754423613732,17.30781512,162.59,162.58,0.06]
[1754423613917,16.71781512,162.59,162.58,0.06]
[1754423614120,12.68134862,162.59,162.58,0.06]
[1754423615149,13.27134862,162.59,162.58,0.06]
[1754423615352,17.30632718,162.59,162.58,0.06]
[1754423616048,16.71632718,162.59,162.58,0.06]
[1754423616228,0.59,162.62,162.58,0.06]
[1754423616550,12.68134862,162.59,162.58,0.06]
[1754423617139,12.68134862,162.6,162.58,0.77]
[1754423617522,26.59,162.65,162.58,0.06]
[1754423617523,12.68134862,162.62,162.58,0.06]
[1754423617725,12.68134862,162.62,162.59,0.71]
[1754423618137,12.68134862,162.62,162.59,6.8601598]
[1754423618627,0.59,162.65,162.59,6.8601598]
[1754423618831,12.68134862,162.62,162.59,6.8601598]
[1754423619032,12.68134862,162.63,162.6,0.71]
[1754423619236,12.68134862,162.63,162.59,6.1501598]
[1754423619237,12.68134862,162.63,162.61,0.71]
[1754423619435,12.68134862,162.63,162.59,6.8601598]
[1754423619630,12.68134862,162.63,162.6,0.71]
[1754423620354,12.68134862,162.63,162.6,6.85997625]
[1754423620525,6.14821931,162.65,162.6,0.71]
[1754423620526,12.68134862,162.62,162.6,0.71]
[1754423620736,12.68134862,162.62,162.59,6.15033913]
[1754423621264,12.68134862,162.6,162.58,0.06]
[1754423621461,12.68134862,162.59,162.58,0.06]
[1754423623570,12.68134862,162.6,162.58,0.06]
[1754423623748,12.68134862,162.59,162.58,0.06]
[1754423624334,12.68134862,162.6,162.58,0.06]
[1754423624733,12.68134862,162.59,162.58,0.06]
[1754423626266,12.71134862,162.59,162.58,0.06]
[1754423628963,18.86178837,162.59,162.58,0.06]
[1754423629164,23.49625286,162.59,162.58,0.06]
[1754423630048,67.79625286,162.59,162.58,0.06]
[1754423630245,26.0,162.57,162.56,0.06]
[1754423630446,42.72581311,162.57,162.56,0.06]
[1754423631158,43.31581311,162.57,162.56,0.06]
[1754423631864,49.46700951,162.57,162.56,0.06]
[1754423632054,54.43087425,162.57,162.56,0.06]
[1754423632485,48.87700951,162.57,162.56,0.06]
[1754423632775,48.87096396,162.57,162.56,0.06]
[1754423633551,45.42254502,162.57,162.56,0.06]
[1754423634176,49.45968068,162.57,162.56,0.06]
[1754423634753,44.73664357,162.57,162.56,0.06]
[1754423635056,44.14664357,162.57,162.56,0.06]
[1754423635264,44.73664357,162.57,162.56,0.06]
[1754423636344,44.14664357,162.57,162.56,0.06]
[1754423636974,40.10950791,162.57,162.56,0.06]
[1754423637358,44.14223113,162.57,162.56,0.06]
[1754423637761,14.10950791,162.57,162.56,0.06]
[1754423637965,7.95831151,162.58,162.56,0.77]
[1754423638170,0.03,162.59,162.57,0.71]
[1754423638380,7.98831151,162.59,162.57,0.71]
[1754423638676,7.98831151,162.59,162.58,0.71]
[1754423639990,0.03,162.59,162.58,0.71]
[1754423640356,7.98831151,162.59,162.56,6.92155255]
[1754423640564,7.98831151,162.59,162.57,0.71]
[1754423640877,0.03,162.59,162.58,0.71]
[1754423642479,12.75307107,162.59,162.56,6.9215735]
[1754423642781,0.03,162.59,162.58,0.71]
[1754423644462,0.03,162.59,162.56,6.2115735]
[1754423644463,12.75307107,162.59,162.56,0.06]
[1754423644664,12.72307107,162.57,162.56,0.06]
[1754423645182,12.72307107,162.57,162.56,0.73]
[1754423645477,12.72307107,162.57,162.56,0.06]
[1754423647257,18.87426747,162.57,162.56,0.06]
[1754423647686,12.72307107,162.57,162.56,0.06]
[1754423648554,50.38059033,162.59,162.56,0.06]
[1754423648884,12.72307107,162.57,162.56,0.06]
[1754423649568,12.72307107,162.57,162.56,0.73]
[1754423649878,12.72307107,162.58,162.56,0.73]
[1754423650270,12.72307107,162.57,162.56,0.06]
[1754423650465,18.87426747,162.57,162.56,0.06]
[1754423650863,19.46426747,162.57,162.56,0.06]
[1754423651063,22.91714783,162.57,162.56,0.06]
[1754423653884,18.87426747,162.57,162.56,0.06]
[1754423654186,22.91960557,162.57,162.56,0.06]
[1754423655070,23.50960557,162.57,162.56,0.06]
[1754423655273,22.91960557,162.57,162.56,0.06]
[1754423655967,23.50960557,162.57,162.56,0.06]
[1754423656680,10.7865345,162.57,162.56,0.06]
[1754423656877,23.50960557,162.57,162.56,0.06]
[1754423658769,22.91960557,162.57,162.56,0.06]
[1754423660493,12.72307107,162.57,162.56,0.73]
[1754423660694,14.10645171,162.57,162.56,0.06]
[1754423660892,62.94540574,162.57,162.56,0.06]
[1754423662071,88.94540574,162.57,162.56,0.06]
[1754423662694,88.94540574,162.57,162.48,108.1]
[1754423662695,104.46555832,162.57,162.48,0.67]
[1754423662900,7.95525531,162.5,162.48,0.67]
[1754423663413,7.95525531,162.5,162.49,0.67]
[1754423665267,7.95525531,162.5,162.47,0.67]
[1754423665470,7.95525531,162.49,162.48,0.67]
[1754423665687,7.95525531,162.5,162.48,0.67]
[1754423665871,47.23700055,162.53,162.45,0.14216157]
[1754423666068,7.95525531,162.5,162.48,0.67]
[1754423666283,7.95525531,162.5,162.49,0.67]
[1754423666669,47.23700055,162.53,162.49,0.67]
[1754423666670,44.2,162.53,162.49,0.67]
[1754423666868,7.95525531,162.52,162.49,0.67]
[1754423667066,44.2,162.55,162.49,0.67]
[1754423667293,7.95525531,162.54,162.49,0.67]
[1754423667470,7.95525531,162.52,162.49,0.67]
[1754423667872,7.95525531,162.52,162.5,6.15384615]
[1754423668096,7.95525531,162.52,162.51,0.67]
[1754423668808,7.95525531,162.53,162.51,0.67]
[1754423668974,7.95525531,162.53,162.52,0.67]
[1754423669276,7.95525531,162.54,162.52,0.67]
[1754423669484,7.95525531,162.54,162.53,0.67]
[1754423670266,7.95525531,162.54,162.51,0.67]
[1754423670494,7.95525531,162.52,162.49,0.73]
[1754423670669,7.95525531,162.51,162.5,0.67]
[1754423671288,12.00764958,162.53,162.5,0.67]
[1754423671572,7.95525531,162.53,162.49,6.21408214]
[1754423671772,7.95525531,162.53,162.51,0.67]
[1754423672472,7.95525531,162.53,162.52,0.67]
[1754423672783,4.05298709,162.55,162.52,0.67]
[1754423672990,0.03,162.59,162.54,7.95525531]
[1754423673194,0.03,162.59,162.56,7.95525531]
[1754423673372,0.03,162.59,162.58,7.95525531]
[1754423673869,0.03,162.59,162.58,0.65]
[1754423674300,0.03,162.59,162.58,6.80081805]
[1754423674879,0.03,162.59,162.58,29.86228893]
[1754423675080,0.03,162.59,162.58,74.2044505]
[1754423676170,0.03,162.59,162.58,74.06228893]
[1754423677375,0.03,162.59,162.58,74.2044505]
[1754423678705,0.03,162.59,162.58,138.1044505]
[1754423678903,0.03,162.59,162.58,138.38877364]
[1754423680011,1e-08,162.59,162.58,138.38877364]
[1754423682303,1e-08,162.59,162.58,138.1044505]
[1754423684190,1e-08,162.59,162.58,138.38877364]
[1754423685813,0.03,162.61,162.6,79.43270027]
[1754423686022,0.03,162.61,162.6,131.56795558]
[1754423686213,0.03,162.61,162.6,138.36801708]
[1754423686409,0.03,162.61,162.6,146.35327208]
[1754423687210,1e-08,162.61,162.6,90.4085274]
[1754423687404,1e-08,162.61,162.6,82.45327209]
[1754423688209,1e-08,162.61,162.6,146.35327208]
[1754423689103,1e-08,162.61,162.6,146.06894894]
[1754423689408,1e-08,162.61,162.6,138.08369394]
[1754423690302,1e-08,162.61,162.6,44.18]
[1754423690497,1e-08,162.61,162.6,44.16]
[1754423691399,1e-08,162.61,162.6,50.3100615]
[1754423692411,1e-08,162.61,162.6,58.26531681]
[1754423692606,1e-08,162.61,162.6,74.16369395]
[1754423693021,1e-08,162.61,162.6,74.44801709]
[1754423693209,1e-08,162.61,162.6,83.01827855]
[1754423694428,1e-08,162.61,162.6,82.4032724]
[1754423694795,1e-08,162.61,162.6,74.44801709]
[1754423695414,1e-08,162.61,162.6,73.51369395]
[1754423695711,1e-08,162.61,162.6,74.16369395]
[1754423696898,1e-08,162.61,162.6,138.34801708]
[1754423697197,1e-08,162.61,162.6,146.89327308]
[1754423697598,1e-08,162.61,162.6,154.84852839]
[1754423698123,1e-08,162.63,162.62,41.39053871]
[1754423698298,1e-08,162.63,162.62,157.52795558]
[1754423698494,1e-08,162.63,162.62,158.17795558]
[1754423699109,1e-08,162.63,162.62,21.25552069]
[1754423699518,1e-08,162.63,162.62,65.39552069]
[1754423700146,1e-08,162.63,162.62,30.00293757]
[1754423700341,8.54525532,162.63,162.58,0.06]
[1754423700626,12.72289891,162.59,162.58,6.21081805]
[1754423700845,13.31289891,162.59,162.58,0.06]
[1754423701012,0.59,162.59,162.58,6.21081805]
[1754423701340,13.31289891,162.59,162.58,0.06]
[1754423701629,0.59,162.59,162.58,0.06]
[1754423702229,13.31289891,162.59,162.58,0.06]
[1754423702437,0.59,162.59,162.58,0.06]
[1754423702728,13.31289891,162.59,162.58,0.06]
[1754423702927,0.59,162.59,162.58,0.06]
[1754423703302,13.31289891,162.59,162.58,0.06]
[1754423703813,0.59,162.59,162.58,0.06]
[1754423704024,13.31289891,162.59,162.58,0.06]
[1754423708624,6.73942126,162.62,162.58,0.06]
[1754423708825,0.59,162.62,162.58,0.06]
[1754423709030,12.72289891,162.62,162.59,44.14]
[1754423709234,1e-08,162.63,162.62,15.10621557]
[1754423709416,1e-08,162.63,162.62,72.11127605]
[1754423709622,1e-08,162.63,162.62,72.82127605]
[1754423710714,1e-08,162.63,162.62,72.11127605]
[1754423711114,1e-08,162.63,162.62,78.97058117]
[1754423712221,1e-08,162.63,162.62,79.25490431]
[1754423713527,1e-08,162.63,162.62,79.86983482]
[1754423713724,0.03,162.68,162.65,26.0]
[1754423714048,0.03,162.7,162.68,26.42648471]
[1754423714049,1e-08,162.7,162.68,26.42648471]
[1754423714228,0.2,162.76,162.7,0.14216157]
[1754423714433,0.2,162.76,162.71,73.10559919]
[1754423714837,0.2,162.76,162.71,72.11127605]
[1754423715223,0.2,162.76,162.71,78.9671798]
[1754423717451,0.2,162.76,162.71,79.25150294]
[1754423717680,0.2,162.76,162.74,41.10621557]
[1754423717835,1e-08,162.75,162.74,98.37559919]
[1754423718154,1e-08,162.75,162.74,99.08559919]
[1754423718359,0.2,162.76,162.75,15.53270028]
[1754423718539,0.2,162.76,162.75,29.58003851]
[1754423718735,0.2,162.8,162.79,15.53270028]
[1754423718948,0.2,162.8,162.79,72.37559919]
[1754423719150,0.2,162.8,162.79,73.08559919]
[1754423719469,0.2,162.8,162.79,77.14984819]
[1754423720352,0.2,162.8,162.79,59.36837714]
[1754423720679,0.2,162.8,162.79,72.09127605]
[1754423720838,0.2,162.8,162.79,78.23415951]
[1754423721353,0.2,162.8,162.79,65.5112606]
[1754423721550,0.2,162.8,162.79,78.23415951]
[1754423721942,0.2,162.8,162.79,65.5112606]
[1754423722139,0.2,162.8,162.79,78.23415951]
[1754423722537,0.2,162.8,162.79,44.12]
[1754423722774,13.01289891,162.8,162.78,44.1]
[1754423723065,12.81289891,162.79,162.78,44.1]
[1754423723365,0.09,162.79,162.78,44.1]
[1754423723574,0.2,162.8,162.78,59.20621557]
[1754423723944,13.01289891,162.8,162.78,59.20621557]
[1754423724149,0.09,162.79,162.78,59.34837714]
[1754423724349,0.09,162.79,162.78,44.1]
[1754423724654,12.81289891,162.79,162.77,44.1]
[1754423724840,12.72289891,162.78,162.77,44.1]
[1754423725042,12.81289891,162.78,162.74,15.10621557]
[1754423725266,12.81289891,162.77,162.75,44.1]
[1754423725585,12.72289891,162.78,162.75,44.1]
[1754423725739,0.09,162.77,162.76,15.10621557]
[1754423725939,0.2,162.8,162.76,15.10621557]
[1754423725940,12.92289891,162.8,162.76,15.10621557]
[1754423726171,12.92289891,162.8,162.77,44.1]
[1754423726748,12.81289891,162.79,162.77,44.1]
[1754423726954,12.81289891,162.78,162.75,44.1]
[1754423727164,12.72289891,162.76,162.73,15.10621557]
[1754423727359,6.14291907,162.79,162.73,44.1]
[1754423727360,12.72289891,162.74,162.73,44.1]
[1754423727560,12.72289891,162.75,162.73,44.1]
[1754423728471,0.09,162.76,162.73,44.1]
[1754423728653,12.72289891,162.75,162.73,44.1]
[1754423729047,12.72289891,162.74,162.73,44.1]
[1754423729648,12.72289891,162.74,162.72,44.1]
[1754423729852,6.23410091,162.76,162.72,44.1]
[1754423730206,12.72289891,162.74,162.72,44.1]
[1754423730771,12.72289891,162.73,162.72,59.20621557]
[1754423731074,6.23410091,162.76,162.72,59.20621557]
[1754423731372,12.72289891,162.73,162.72,59.20621557]
[1754423731952,12.81289891,162.73,162.69,26.0]
[1754423732155,12.72289891,162.71,162.69,26.0]
[1754423732461,12.72289891,162.71,162.7,44.1]
[1754423732659,6.23524656,162.73,162.7,44.1]
[1754423732864,12.72289891,162.71,162.7,44.1]
[1754423733259,6.23488537,162.74,162.7,44.1]
[1754423733441,12.72289891,162.71,162.7,44.1]
[1754423733873,12.81289891,162.71,162.7,44.1]
[1754423734765,12.72289891,162.71,162.7,44.1]
[1754423735597,12.72289891,162.76,162.71,15.10621557]
[1754423735799,12.72289891,162.78,162.73,27.97127605]
[1754423736110,0.2,162.8,162.76,27.82911448]
[1754423736275,12.72289891,162.78,162.77,44.1]
[1754423736599,12.72289891,162.78,162.75,44.1]
[1754423736901,6.34252355,162.8,162.76,28.51911448]
[1754423737209,0.2,162.8,162.77,44.1]
[1754423737373,12.92289891,162.8,162.77,44.79]
[1754423738378,12.92289891,162.8,162.77,44.1]
[1754423738871,0.2,162.8,162.77,44.1]
[1754423739070,0.2,162.8,162.77,44.79]
[1754423739297,12.92289891,162.8,162.77,44.79]
[1754423739970,12.92289891,162.8,162.77,44.1]
[1754423740169,0.2,162.8,162.77,44.79]
[1754423740579,0.2,162.8,162.77,50.93361387]
[1754423740776,0.2,162.8,162.78,0.69]
[1754423741380,0.2,162.8,162.77,44.1]
[1754423741592,12.92289891,162.8,162.77,44.1]
[1754423742104,19.06560153,162.8,162.77,107.99999999]
[1754423742312,12.72289891,162.79,162.77,44.1]
[1754423742600,13.31289891,162.78,162.75,107.99999999]
[1754423742800,12.72289891,162.77,162.75,107.99999999]
[1754423743195,12.72289891,162.78,162.76,0.69]
[1754423743496,12.72289891,162.79,162.77,0.69]
[1754423743672,0.2,162.8,162.78,0.69]
[1754423744082,0.2,162.8,162.77,44.1]
[1754423744403,0.2,162.8,162.78,0.69]
[1754423744603,12.92289891,162.8,162.78,0.69]
[1754423745600,0.2,162.8,162.78,0.69]
[1754423745806,12.92289891,162.8,162.78,0.69]
[1754423746306,12.92289891,162.8,162.78,6.83320755]
[1754423746500,12.92289891,162.8,162.78,0.69]
[1754423747299,12.92289891,162.8,162.77,44.1]
[1754423747479,12.92289891,162.8,162.78,0.69]
[1754423747882,0.2,162.8,162.79,44.08]
[1754423748418,0.2,162.8,162.79,72.74127605]
[1754423748706,0.2,162.85,162.8,15.24837714]
[1754423748869,0.2,162.85,162.83,15.10621557]
[1754423749074,0.2,162.85,162.84,44.08]
[1754423749285,0.2,162.85,162.84,44.77]
[1754423749486,0.2,162.85,162.84,44.08]
[1754423750481,12.92289891,162.85,162.84,44.08]
[1754423751088,0.2,162.85,162.84,66.15937443]
[1754423751594,0.2,162.85,162.84,78.88227334]
[1754423753681,0.03,162.87,162.86,0.28432314]
[1754423753911,0.03,162.87,162.86,72.33559919]
[1754423754413,0.03,162.87,162.86,73.02559919]
[1754423755085,0.03,162.87,162.86,79.16584234]
[1754423755894,0.03,162.87,162.86,66.44294343]
[1754423756085,0.03,162.87,162.86,79.16584234]
[1754423758789,0.03,162.87,162.86,66.44294343]
[1754423759107,0.03,162.87,162.86,91.91874134]
[1754423759508,0.03,162.87,162.86,79.19584243]
[1754423759711,0.03,162.87,162.86,91.91874134]
[1754423760390,0.03,162.87,162.86,59.18621557]
[1754423760593,0.03,162.87,162.86,59.16621557]
[1754423762606,0.03,162.87,162.86,65.30645872]
[1754423762818,0.03,162.87,162.86,78.45584234]
[1754423762993,0.03,162.87,162.86,79.14584234]
[1754423763324,0.03,162.87,162.86,66.42294343]
[1754423763518,0.03,162.87,162.86,79.14584234]
[1754423763894,0.03,162.87,162.86,66.13862029]
[1754423764101,0.03,162.87,162.86,21.38862029]
[1754423764425,0.03,162.87,162.86,65.42862029]
[1754423765320,0.03,162.87,162.86,65.28645872]
[1754423765688,0.03,162.87,162.86,123.04621557]
[1754423766129,0.03,162.87,162.86,129.18645872]
[1754423766726,0.03,162.87,162.86,142.0515192]
[1754423766917,0.03,162.87,162.86,142.7715192]
[1754423767098,0.03,162.87,162.86,130.04862029]
[1754423767495,0.03,162.87,162.86,129.32862029]
[1754423767700,0.03,162.87,162.86,130.04862029]
[1754423768713,0.03,162.87,162.86,142.7715192]
[1754423771533,0.03,162.87,162.86,129.32862029]
[1754423771727,0.03,162.87,162.86,142.0515192]
[1754423771930,0.03,162.87,162.86,142.7715192]
[1754423772609,0.03,162.87,162.86,137.96845437]
[1754423773212,0.03,162.87,162.86,138.25277751]
[1754423774433,1e-08,162.87,162.86,138.25277751]
[1754423776632,0.03,162.91,162.9,41.53270028]
[1754423776936,0.03,162.91,162.9,93.47253436]
[1754423777241,0.03,162.91,162.9,94.19253436]
[1754423778337,0.2,162.95,162.93,0.42648471]
[1754423778530,0.2,162.95,162.94,67.18821122]
[1754423779329,0.2,162.95,162.94,59.26837714]
[1754423779716,0.92,162.95,162.94,59.12621557]
[1754423780231,8.83983408,162.95,162.94,44.02]
[1754423780432,0.92,162.95,162.94,44.02]
[1754423780649,8.83983408,162.95,162.94,44.02]
[1754423780819,8.83983408,162.95,162.93,63.9]
[1754423781143,8.63983408,162.94,162.93,63.9]
[1754423781447,8.63983408,162.94,162.93,107.92]
[1754423781631,0.2,162.95,162.93,114.05750584]
[1754423781950,0.92,162.95,162.93,114.05739221]
[1754423782123,0.2,162.95,162.94,15.10621557]
[1754423782631,13.58630812,162.95,162.93,107.92]
[1754423782835,13.38630812,162.94,162.93,107.92]
[1754423783549,13.38630812,162.94,162.93,44.02]
[1754423784522,0.2,162.95,162.93,50.1575988]
[1754423784523,12.86630812,162.95,162.93,50.1575988]
[1754423784947,13.58630812,162.95,162.93,44.02]
[1754423785646,0.2,162.95,162.94,15.96837714]
[1754423786733,0.2,162.95,162.94,22.10560556]
[1754423787854,0.2,162.95,162.94,34.77191368]
[1754423789130,0.2,162.95,162.94,35.05623682]
[1754423789456,0.2,162.95,162.94,65.38560556]
[1754423790044,0.2,162.95,162.94,78.77191368]
[1754423790748,0.2,162.95,162.94,65.38560556]
[1754423792150,13.58630812,162.95,162.89,16.06709357]
[1754423792357,12.66630812,162.94,162.9,21.24495099]
[1754423792533,13.38630812,162.93,162.9,65.24495099]
[1754423792733,12.66630812,162.91,162.9,59.10621557]
[1754423793136,0.72,162.94,162.9,65.24469122]
[1754423793350,12.66630812,162.92,162.9,65.24469122]
[1754423793955,12.66630812,162.93,162.9,65.24469122]
[1754423794334,12.66630812,162.94,162.91,15.94837714]
[1754423794551,12.66630812,162.94,162.92,43.98]
[1754423794861,0.2,162.95,162.86,70.04016213]
[1754423794862,17.42208568,162.93,162.86,70.04016213]
[1754423795065,12.66630812,162.88,162.87,43.98]
[1754423795230,4.75577756,162.92,162.87,43.98]
[1754423795231,0.71,162.9,162.87,43.98]
[1754423795433,12.66630812,162.89,162.87,50.11986615]
[1754423795659,12.66630812,162.89,162.87,43.98]
[1754423796038,12.66630812,162.89,162.87,50.11985466]
[1754423798651,12.66630812,162.89,162.88,0.06]
[1754423798848,0.71,162.91,162.88,0.06]
[1754423799047,4.04787804,162.92,162.89,44.0]
[1754423799245,12.66630812,162.93,162.91,15.10621557]
[1754423799558,12.66630812,162.94,162.92,43.98]
[1754423799752,0.2,162.95,162.92,43.98]
[1754423799951,0.2,162.95,162.93,0.7]
[1754423800145,12.86630812,162.95,162.94,43.98]
[1754423803260,0.2,162.95,162.94,50.11722842]
[1754423803455,0.2,162.95,162.94,50.81722842]
[1754423803769,0.2,162.95,162.94,50.11722842]
[1754423805063,0.2,162.95,162.94,99.98116031]
[1754423805290,0.2,162.95,162.94,73.98116031]
[1754423806190,0.2,162.95,162.94,66.06560556]
[1754423806344,8.11555475,162.95,162.94,59.08621557]
[1754423806759,0.2,162.95,162.94,59.08621557]
[1754423806954,0.2,162.95,162.94,65.22344399]
[1754423807155,8.11555475,162.95,162.94,43.98]
[1754423807452,8.82555475,162.95,162.94,43.98]
[1754423807851,8.11555475,162.95,162.94,43.98]
[1754423808955,0.2,162.95,162.94,43.98]
[1754423809176,0.2,162.95,162.94,66.06560556]
[1754423810077,0.2,162.95,162.94,74.26548345]
[1754423810672,1e-08,162.95,162.94,74.26548345]
[1754423811682,1e-08,162.95,162.94,100.26548345]
[1754423811878,1e-08,162.95,162.94,74.26548345]
[1754423813296,1e-08,162.95,162.94,100.26548345]
[1754423814579,1e-08,162.95,162.94,74.87920629]
[1754423814787,1e-08,162.95,162.94,74.26548345]
[1754423820399,1e-08,162.95,162.94,76.68165545]
[1754423820786,1e-08,162.95,162.94,74.22548345]
[1754423820981,1e-08,162.95,162.94,76.68180745]
[1754423821491,1e-08,162.95,162.94,74.22548345]
[1754423822091,1e-08,162.95,162.94,21.24344399]
[1754423822292,0.71000001,162.95,162.94,65.18344399]
[1754423822493,0.71000001,162.95,162.94,29.58548345]
[1754423822494,1e-08,162.95,162.94,29.58548345]
[1754423822692,1e-08,162.95,162.94,73.24116031]
[1754423822884,8.62555476,162.95,162.94,15.10621557]
[1754423823085,0.71000001,162.95,162.94,15.10621557]
[1754423823283,0.71000001,162.95,162.94,65.18344399]
[1754423823284,1e-08,162.95,162.94,65.18344399]
[1754423823786,0.71000001,162.95,162.94,65.18344399]
[1754423824905,8.62555476,162.95,162.94,43.94]
[1754423825605,8.62555476,162.95,162.92,21.24393785]
[1754423825807,8.62555475,162.94,162.93,43.94]
[1754423827984,14.76296759,162.94,162.91,0.06]
[1754423828181,7.91555475,162.92,162.91,0.06]
[1754423828700,8.62555475,162.92,162.91,0.06]
[1754423830208,14.76353658,162.92,162.91,0.06]
[1754423830407,22.67909133,162.92,162.91,0.06]
[1754423830707,26.7259374,162.92,162.91,0.06]
[1754423830888,18.81038265,162.92,162.91,0.06]
[1754423832812,21.9694681,162.91,162.9,0.06]
[1754423833011,48.96379124,162.91,162.88,0.06]
[1754423833205,48.96379124,162.91,162.85,0.06]
[1754423833206,33.91555475,162.89,162.85,0.06]
[1754423833390,26.0,162.89,162.85,6.20051106]
[1754423833702,7.91555475,162.87,162.86,0.68]
[1754423833879,7.91555475,162.87,162.85,6.20051106]
[1754423834094,7.91555475,162.87,162.85,6.88051106]
[1754423834300,7.91555475,162.88,162.86,0.68]
[1754423834805,7.91555475,162.87,162.86,0.68]
[1754423834995,7.91555475,162.87,162.85,0.06]
[1754423835201,0.71,162.89,162.85,6.2005814]
[1754423835403,7.91555475,162.86,162.85,6.8805814]
[1754423835618,7.91555475,162.87,162.85,6.8805814]
[1754423836600,7.91555475,162.88,162.86,0.68]
[1754423836803,7.91555475,162.88,162.86,6.81990084]
[1754423837833,7.91555475,162.9,162.87,59.72621557]
[1754423838015,1e-08,162.95,162.87,59.72621557]
[1754423838016,4.04037731,162.95,162.89,23.02177032]
[1754423838216,7.91555475,162.93,162.9,44.62]
[1754423838395,7.91555475,162.92,162.9,43.94]
[1754423839203,0.71000001,162.95,162.9,50.75872341]
[1754423839410,7.91555475,162.93,162.91,0.68]
[1754423839590,7.91555475,162.92,162.9,50.07872341]
[1754423839791,6.13686198,162.95,162.9,50.07872341]
[1754423839792,6.13686198,162.95,162.9,43.94]
[1754423839995,7.91555475,162.91,162.87,15.10621557]
[1754423840214,7.91555475,162.89,162.88,43.94]
[1754423840414,7.91555475,162.9,162.88,44.62]
[1754423840627,7.91555475,162.91,162.89,0.68]
[1754423840832,7.91555475,162.92,162.9,0.68]
[1754423841508,7.91555475,162.92,162.91,43.94]
[1754423844025,0.03,162.94,162.91,43.94]
[1754423844026,7.91555475,162.93,162.91,50.7583586]
[1754423844599,7.91555475,162.93,162.92,0.68]
[1754423844798,7.91555475,162.93,162.91,50.0783586]
[1754423845303,7.91555475,162.92,162.91,43.94]
[1754423845705,7.91555475,162.92,162.89,85.14520737]
[1754423845918,7.91555475,162.92,162.9,44.62]
[1754423846729,0.74,162.94,162.9,50.75867951]
[1754423846932,7.91555475,162.92,162.9,44.62]
[1754423847628,7.91555475,162.92,162.91,0.68]
[1754423848007,0.03,162.94,162.91,64.58]
[1754423848212,0.03,162.94,162.92,50.07765739]
[1754423848537,0.03,162.94,162.92,50.75765739]
[1754423849126,8.62555475,162.93,162.91,63.9]
[1754423849347,7.91555475,162.92,162.91,107.82]
[1754423850036,0.03,162.94,162.91,114.63835808]
[1754423850037,7.91555475,162.93,162.91,114.63835808]
[1754423850233,0.03,162.94,162.91,114.63835808]
[1754423850436,0.03,162.94,162.92,0.68]
[1754423850736,0.03,162.94,162.93,43.92]
[1754423851038,7.94555475,162.94,162.93,43.92]